bitfinex-derivatives/quotes_ETHF0:USTF0_20251107
["timestamp","ask_amount","ask_price","bid_price","bid_amount"]
[1762524069758,0.50003,3241.9,3241.8,4.03115874]
[1762524069966,1.03935,3241.8,3241.7,0.00462784]
[1762524070164,1.03949,3240.9,3240.8,0.82335874]
[1762524070567,0.5002,3240.8,3240.7,1.36725874]
[1762524071065,0.0028468,3240.8,3240.7,1.37064236]
[1762524071272,0.0028468,3240.8,3240.7,1.87086236]
[1762524071462,0.0028468,3240.8,3240.7,0.54728362]
[1762524071859,0.5030468,3240.8,3240.7,0.54728362]
[1762524072155,0.0028468,3240.8,3240.7,0.54728362]
[1762524073667,0.5030468,3240.8,3240.7,0.54728362]
[1762524073863,4.2501468,3240.8,3240.7,0.00338362]
[1762524074458,12.2501468,3240.8,3240.7,0.00338362]
[1762524074663,0.50029,3240.3,3240.0,1.15168996]
[1762524074861,0.50028,3240.3,3240.1,1.36788996]
[1762524075164,0.50028,3240.3,3240.2,0.5439]
[1762524075562,0.50028,3240.3,3240.2,0.54785448]
[1762524075766,9.437,3240.4,3240.3,0.5439]
[1762524075961,9.93726,3240.4,3240.3,0.5439]
[1762524076364,9.437,3240.4,3240.3,0.5439]
[1762524076761,9.93726,3240.4,3240.3,0.5439]
[1762524076961,0.00462784,3240.5,3240.4,0.5439]
[1762524077174,0.50487784,3240.5,3240.4,0.5439]
[1762524077560,1.03958,3240.3,3240.2,3.21175448]
[1762524078169,0.00462784,3240.5,3240.4,0.5439]
[1762524078464,0.50487784,3240.5,3240.4,0.5439]
[1762524078663,0.00462784,3240.5,3240.4,0.5439]
[1762524079670,0.50027,3240.4,3240.2,4.03574444]
[1762524079865,0.50027,3240.4,3240.2,3.21175448]
[1762524080067,0.50028,3240.3,3240.2,3.21175448]
[1762524080771,1.03958,3240.3,3240.2,3.21175448]
[1762524081160,0.50028,3240.3,3240.2,3.21175448]
[1762524081770,0.00462784,3240.5,3240.4,0.5439]
[1762524083071,0.50487784,3240.5,3240.4,0.5439]
[1762524083572,0.00462784,3240.5,3240.4,0.5439]
[1762524083769,0.50487784,3240.5,3240.4,0.5439]
[1762524084662,0.50487784,3240.5,3240.2,3.75565448]
[1762524084663,0.50028,3240.3,3240.2,3.75565448]
[1762524084869,0.50028,3240.3,3240.2,3.21175448]
[1762524085071,1.03958,3240.3,3240.2,3.21175448]
[1762524086174,0.50488784,3240.5,3240.4,0.5439]
[1762524086667,0.50028,3240.3,3240.2,3.21175448]
[1762524086869,0.50028,3240.3,3240.2,3.75565448]
[1762524087472,0.50028,3240.4,3240.2,3.21175448]
[1762524087671,0.50028,3240.4,3240.3,0.5439]
[1762524088570,0.50028,3240.3,3240.2,3.21175448]
[1762524089971,1.03958,3240.3,3240.2,3.21175448]
[1762524090573,1.03958,3240.3,3240.2,0.00395448]
[1762524090765,0.4567,3239.7,3239.3,1.09781165]
[1762524091074,0.50053,3238.7,3238.6,0.4821]
[1762524091977,0.50053,3238.7,3238.6,0.48577773]
[1762524092473,12.6448,3239.1,3238.6,0.48577773]
[1762524092674,0.50053,3238.7,3238.6,0.48577773]
[1762524093272,0.50053,3238.7,3238.6,0.00367773]
[1762524093465,0.95723,3238.7,3238.6,0.00367773]
[1762524093979,4.16503,3238.7,3238.6,0.00367773]
[1762524097976,0.1863,3238.5,3237.5,4.58361165]
[1762524098178,0.50068,3237.8,3237.7,0.4821]
[1762524098775,0.5007,3237.6,3237.5,0.278]
[1762524099169,0.96063518,3237.6,3237.5,0.00276119]
[1762524100378,0.50085,3236.6,3236.5,0.7601]
[1762524100581,12.6458,3236.8,3236.0,3.4858]
[1762524100781,0.5009,3236.3,3236.0,3.4858]
[1762524100981,0.00462784,3236.7,3236.6,0.4821]
[1762524101480,0.00462784,3236.7,3236.6,0.48550681]
[1762524103780,0.00462784,3236.7,3236.6,0.98635681]
[1762524104378,0.50546784,3236.7,3236.6,0.00340681]
[1762524104575,0.98946784,3236.7,3236.6,0.00340681]
[1762524105583,0.48862784,3236.7,3236.6,0.00340681]
[1762524105784,0.98946784,3236.7,3236.6,0.00340681]
[1762524105985,0.00462784,3236.7,3236.6,0.00340681]
[1762524106287,0.50546784,3236.7,3236.6,0.47720681]
[1762524106580,0.00462784,3236.7,3236.6,0.47720681]
[1762524106880,0.00462784,3236.7,3236.6,0.00340681]
[1762524107071,0.46322784,3236.7,3236.6,0.00340681]
[1762524107275,0.50546784,3236.7,3236.6,0.00340681]
[1762524107580,4.17186784,3236.7,3236.6,0.00340681]
[1762524108885,12.17186784,3236.7,3236.6,0.00340681]
[1762524109180,0.50098,3235.8,3235.7,3.6816]
[1762524109383,0.95958,3235.8,3235.7,3.2078]
[1762524109579,9.441,3236.1,3235.7,3.6816]
[1762524109781,9.441,3236.1,3236.0,0.2928]
[1762524110080,9.94193,3236.1,3236.0,0.7666]
[1762524110281,9.94193,3236.1,3236.0,0.76951907]
[1762524110487,9.94193,3236.1,3236.0,0.29571907]
[1762524110683,9.441,3236.1,3236.0,0.29571907]
[1762524111287,9.441,3236.2,3236.1,0.4738]
[1762524112187,9.441,3236.2,3236.0,0.29571907]
[1762524112390,9.441,3236.2,3236.1,0.4738]
[1762524112588,3.2078,3236.6,3236.1,0.4738]
[1762524112781,9.94187,3236.5,3236.4,0.4738]
[1762524113283,9.441,3236.5,3236.4,0.4738]
[1762524113679,9.441,3236.5,3236.2,3.2078]
[1762524113680,0.00462784,3236.7,3236.6,0.97465]
[1762524113887,0.00462784,3236.7,3236.6,3.6816]
[1762524115578,0.00462784,3236.7,3236.6,12.18245]
[1762524115979,2.784e-05,3236.7,3236.6,12.18245]
[1762524116182,9.441,3237.3,3237.2,0.4738]
[1762524116382,9.441,3237.3,3237.2,3.6816]
[1762524116679,3.2078,3237.8,3237.5,0.7666]
[1762524116887,0.50393518,3237.6,3237.5,0.7666]
[1762524117681,0.4586,3237.5,3237.2,0.00463514]
[1762524117884,0.95934,3237.3,3237.2,0.00463514]
[1762524119990,0.4586,3237.3,3237.2,0.00463514]
[1762524120185,0.97114,3237.3,3237.2,0.00463514]
[1762524120592,8.97114,3237.3,3237.2,0.00463514]
[1762524120989,0.97128,3236.4,3236.3,4.30561165]
[1762524121287,0.97128,3236.4,3236.3,3.2078]
[1762524121695,9.44,3236.5,3236.3,3.2078]
[1762524121994,0.50088,3236.4,3236.3,3.2078]
[1762524122295,0.97128,3236.4,3236.3,3.2078]
[1762524123195,0.50093,3236.1,3236.0,1.37433072]
[1762524123692,0.50093,3236.1,3236.0,0.00291907]
[1762524123693,0.97133,3236.1,3236.0,0.00291907]
[1762524124489,4.17913,3236.1,3236.0,0.00291907]
[1762524127794,0.97133,3236.1,3236.0,0.00291907]
[1762524130092,9.94093,3236.1,3236.0,0.74061907]
[1762524130496,10.41133,3236.1,3236.0,0.00291907]
[1762524130695,9.94093,3236.1,3236.0,0.27651907]
[1762524130896,9.94093,3236.1,3236.0,0.74061907]
[1762524131297,3.2078,3236.5,3236.0,1.83843072]
[1762524131499,0.97133,3236.1,3236.0,0.00291907]
[1762524131701,0.4704,3236.1,3236.0,0.00291907]
[1762524131898,3.2078,3236.9,3236.5,0.2736]
[1762524132287,6.109,3236.8,3236.5,1.37512079]
[1762524132495,0.97125,3236.6,3236.5,1.10152079]
[1762524132799,0.50085,3236.7,3236.5,1.10152079]
[1762524133093,0.50084,3236.7,3236.5,1.37512079]
[1762524133798,0.50085,3236.6,3236.5,1.83922079]
[1762524134192,9.439,3236.8,3236.5,1.83922079]
[1762524134501,0.50085,3236.6,3236.5,1.83922079]
[1762524134896,0.50085,3236.6,3236.5,1.37512079]
[1762524135800,0.97125,3236.6,3236.5,1.37512079]
[1762524136097,9.439,3236.8,3236.5,1.37512079]
[1762524136300,0.50085,3236.7,3236.6,0.4641]
[1762524136492,0.97125,3236.6,3236.5,1.10152079]
[1762524136899,9.93982,3236.8,3236.7,0.4641]
[1762524137098,9.439,3236.8,3236.7,0.4641]
[1762524137296,9.439,3236.8,3236.7,1.56427393]
[1762524137498,9.439,3236.8,3236.7,0.4641]
[1762524137901,0.50084,3236.7,3236.6,4.855921]
[1762524138206,9.93982,3236.8,3236.7,0.4641]
[1762524138393,9.93982,3236.8,3236.7,1.56395151]
[1762524138704,9.93982,3236.8,3236.7,1.56393161]
[1762524138904,9.439,3236.8,3236.7,1.56393161]
[1762524139109,0.50077,3237.2,3237.1,0.4641]
[1762524139404,0.4704,3237.1,3236.9,1.09954177]
[1762524139601,0.50079,3237.0,3236.9,1.09954177]
[1762524140007,0.50078,3237.1,3237.0,0.2736]
[1762524141206,9.437,3237.3,3237.0,0.2736]
[1762524141506,0.50078,3237.1,3237.0,1.83724177]
[1762524141799,0.50079,3237.0,3236.9,4.30734177]
[1762524142000,9.437,3237.3,3236.9,1.09954177]
[1762524142001,0.50078,3237.1,3236.9,1.09954177]
[1762524142208,9.437,3237.3,3237.0,1.37314177]
[1762524142507,0.50076,3237.2,3237.0,1.37314177]
[1762524143005,9.93775,3237.3,3237.0,1.37314177]
[1762524143207,9.437,3237.3,3237.0,1.37314177]
[1762524143396,9.437,3237.3,3237.1,1.09954177]
[1762524143397,9.93775,3237.3,3237.1,1.09954177]
[1762524143594,0.50394518,3237.6,3237.5,0.2736]
[1762524143800,0.97434518,3237.6,3237.5,0.7377]
[1762524144102,0.00323518,3237.6,3237.3,1.09954177]
[1762524144714,0.50073,3237.4,3237.3,1.56364177]
[1762524145305,0.97113,3237.4,3237.3,1.09954177]
[1762524145498,0.97118,3237.1,3237.0,1.09954177]
[1762524145704,0.4704,3237.1,3237.0,1.09954177]
[1762524145900,0.50073,3237.5,3237.0,0.7377]
[1762524146107,0.50073,3237.4,3237.3,0.4641]
[1762524146309,0.00323518,3237.6,3237.5,0.7377]
[1762524146607,0.97433518,3237.6,3237.5,0.2736]
[1762524146906,0.50073,3237.5,3237.3,4.30709998]
[1762524147107,0.50073,3237.4,3237.3,4.30709998]
[1762524147302,0.97113,3237.4,3237.3,4.30709998]
[1762524147608,0.97114,3237.3,3237.2,1.09929998]
[1762524147812,0.97119,3237.0,3236.9,4.30709998]
[1762524148101,0.97119,3237.0,3236.9,1.09929998]
[1762524148303,0.97121,3236.9,3236.8,1.09929998]
[1762524148498,0.4704,3236.9,3236.6,1.09929998]
[1762524148704,0.97124,3236.7,3236.6,1.09929998]
[1762524148899,0.97125,3236.6,3236.5,4.30709998]
[1762524149506,12.6408,3237.2,3236.7,0.3998]
[1762524149708,0.50082,3236.8,3236.7,0.3998]
[1762524150001,9.93276,3237.2,3237.1,0.3998]
[1762524150208,0.50081,3236.9,3236.8,1.09929998]
[1762524150502,0.50082,3236.8,3236.7,1.09929998]
[1762524150803,0.92062,3236.8,3236.7,1.09929998]
[1762524151106,0.92064,3236.7,3236.6,1.09929998]
[1762524151505,0.4198,3236.7,3236.5,4.55769998]
[1762524151699,0.92065,3236.7,3236.6,1.09929998]
[1762524152103,0.92065,3236.6,3236.5,1.09929998]
[1762524152299,0.92067,3236.5,3236.4,1.09929998]
[1762524153396,0.50088,3236.4,3236.3,1.09929998]
[1762524153600,0.92068,3236.4,3236.3,1.09929998]
[1762524153907,0.9207,3236.3,3236.2,1.09929998]
[1762524155606,0.9207,3236.3,3236.1,3.2078]
[1762524155607,0.92071,3236.2,3236.1,1.09929998]
[1762524155806,0.1034,3237.0,3236.1,1.09929998]
[1762524155807,0.2504,3237.0,3236.2,6.18]
[1762524156001,0.2504,3237.0,3236.8,3.2078]
[1762524156002,0.4198,3236.9,3236.8,3.2078]
[1762524156202,0.4198,3236.8,3236.7,1.1007815]
[1762524156403,0.92064,3236.7,3236.6,1.65117226]
[1762524156706,1.17107,3236.5,3236.4,3.2078]
[1762524157096,0.2504,3236.5,3236.4,11.70868]
[1762524157301,0.2504,3236.5,3236.4,13.91179496]
[1762524157502,0.2504,3236.5,3236.4,11.70868]
[1762524157704,0.2504,3237.0,3236.9,0.5008]
[1762524157908,0.2504,3237.0,3236.9,5.90984643]
[1762524158106,0.00463514,3237.9,3236.9,19.58744643]
[1762524158305,0.00463514,3237.9,3237.8,0.50067]
[1762524159212,0.00753206,3237.9,3237.8,0.50067]
[1762524159403,0.00753206,3237.9,3237.6,2.20127619]
[1762524159900,0.00753206,3237.9,3237.5,5.40907619]
[1762524160096,0.50067,3237.8,3237.7,1.64947655]
[1762524160302,0.94197,3237.8,3237.7,1.64947655]
[1762524160502,0.50068,3237.7,3237.6,1.64947655]
[1762524160807,0.5007,3237.6,3237.5,4.85727655]
[1762524161210,0.942,3237.6,3237.5,4.85727655]
[1762524161409,0.942,3237.6,3237.5,4.30798375]
[1762524161816,0.942,3237.6,3237.5,3.2078]
[1762524163312,0.942,3237.6,3237.5,1.63325629]
[1762524164210,0.50074,3237.3,3237.2,0.82531601]
[1762524164418,0.94206,3237.2,3237.1,4.03311601]
[1762524165316,3.21533206,3237.9,3237.1,3.6384]
[1762524165614,0.50074,3237.4,3237.3,0.4306]
[1762524166013,0.50071,3237.5,3237.4,0.4306]
[1762524166710,3.21533206,3237.9,3237.4,0.4306]
[1762524166904,3.21533206,3237.9,3237.5,1.51036294]
[1762524166905,0.50068,3237.7,3237.5,1.51036294]
[1762524167109,0.50067,3237.8,3237.7,0.4306]
[1762524167512,0.50073,3237.4,3237.3,1.10018375]
[1762524167814,0.94204,3237.3,3237.2,1.10018375]
[1762524168008,0.50074,3237.4,3237.1,4.73858375]
[1762524168214,0.50074,3237.4,3237.3,1.25637061]
[1762524168807,0.50074,3237.4,3237.3,0.4306]
[1762524169211,0.50074,3237.3,3237.2,1.10018375]
[1762524169508,0.50074,3237.3,3237.2,1.53078375]
[1762524169915,0.50073,3237.4,3237.3,0.4306]
[1762524170518,0.50074,3237.3,3237.2,1.10018375]
[1762524170711,0.94204,3237.3,3237.2,1.10018375]
[1762524170912,0.50074,3237.3,3237.2,1.10018375]
[1762524171214,0.50074,3237.3,3237.2,1.53078375]
[1762524171514,0.50074,3237.3,3237.2,2.08007655]
[1762524171713,3.21533206,3237.9,3237.2,2.08007655]
[1762524171911,0.5007,3237.6,3237.5,1.07966999]
[1762524172115,0.942,3237.6,3237.5,0.82566999]
[1762524173324,0.5007,3237.6,3237.5,1.07966999]
[1762524173518,0.5007,3237.6,3237.5,1.51026999]
[1762524174020,0.942,3237.6,3237.5,0.82566999]
[1762524174216,0.94203,3237.4,3237.3,0.82566999]
[1762524179427,0.50074,3237.3,3237.2,1.53149332]
[1762524181030,0.50076,3237.2,3237.1,1.10089332]
[1762524181228,0.95276,3237.2,3237.1,1.10089332]
[1762524181429,0.95277,3237.1,3237.0,1.10089332]
[1762524181732,3.2849,3237.5,3236.8,1.10089332]
[1762524181733,0.95281,3236.9,3236.8,1.10089332]
[1762524182232,4.16061,3236.9,3236.8,1.10089332]
[1762524182529,0.95284,3236.7,3236.6,1.10089332]
[1762524182730,1.20327,3236.5,3236.4,1.00510005]
[1762524182926,0.95291,3236.2,3236.1,1.00510005]
[1762524183328,0.95293,3236.1,3236.0,0.00291907]
[1762524183522,3.2078,3236.5,3236.0,0.74881907]
[1762524183725,0.50085,3236.6,3236.5,0.7459]
[1762524183920,0.5009,3236.3,3236.2,3.6613]
[1762524184731,9.426,3236.7,3236.3,0.4535]
[1762524184732,0.50088,3236.4,3236.3,0.4535]
[1762524185032,9.426,3236.7,3236.3,0.4535]
[1762524185231,9.426,3236.7,3236.5,0.2924]
[1762524185531,0.50088,3236.5,3236.2,3.2078]
[1762524185729,0.5009,3236.3,3236.2,3.6613]
[1762524187829,0.452,3235.5,3235.4,1.6567285]
[1762524188026,0.2812,3236.0,3235.0,2.49367619]
[1762524188027,0.50107,3235.2,3235.0,0.2924]
[1762524188223,9.427,3235.7,3235.0,0.2924]
[1762524188433,0.50101,3235.6,3235.0,0.2924]
[1762524188830,0.50102,3235.5,3235.0,0.29615631]
[1762524189032,0.50475544,3235.6,3235.0,0.29615631]
[1762524189233,0.50103,3235.5,3235.0,0.29615631]
[1762524189829,0.00373544,3235.6,3235.0,0.29615631]
[1762524190338,0.50474544,3235.6,3235.0,0.29615631]
[1762524191032,0.50103,3235.5,3235.0,0.29615631]
[1762524191639,0.00373544,3235.6,3235.5,0.7459]
[1762524192140,0.00373544,3235.6,3235.5,1.24692]
[1762524192338,0.00373544,3235.6,3235.5,0.7459]
[1762524192546,0.00373544,3235.6,3235.5,9.24692]
[1762524192838,0.50085,3236.6,3236.3,0.4535]
[1762524193036,4.61584,3236.7,3236.5,0.7459]
[1762524193242,4.61584,3236.7,3236.6,0.4535]
[1762524193443,0.50085,3236.6,3236.2,3.2078]
[1762524193631,4.115,3236.7,3236.5,0.2924]
[1762524193834,0.00390518,3236.6,3236.5,0.7459]
[1762524195537,0.50075,3237.3,3237.2,0.4535]
[1762524195735,0.50074,3237.3,3237.2,0.4535]
[1762524196542,6.57253,3237.4,3237.2,0.4535]
[1762524196731,0.00310585,3237.3,3237.2,0.4535]
[1762524197837,3.2078,3238.3,3237.5,1.24661]
[1762524198040,3.2078,3238.3,3237.7,3.2078]
[1762524198343,0.50057,3238.5,3238.1,3.2078]
[1762524198536,9.426,3238.9,3238.1,3.2078]
[1762524198743,0.50053,3238.8,3238.7,0.4535]
[1762524198940,0.00249952,3238.8,3238.7,0.45712587]
[1762524200744,0.00463514,3239.1,3239.0,0.7459]
[1762524201044,0.50035,3239.9,3239.2,0.50045]
[1762524201240,0.50029,3240.3,3240.0,0.2924]
[1762524201440,9.424,3240.4,3240.0,0.2924]
[1762524201947,9.42652365,3240.4,3240.0,0.2924]
[1762524202134,9.42652365,3240.4,3240.3,0.4535]
[1762524202337,0.00252365,3240.4,3240.3,0.4535]
[1762524203343,9.423,3241.1,3241.0,0.7459]
[1762524203548,3.2078,3242.3,3241.2,0.50014]
[1762524203850,3.2078,3242.3,3241.6,3.2078]
[1762524204251,3.2078,3242.3,3242.2,0.4535]
[1762524204453,3.21632505,3242.3,3242.2,0.4535]
[1762524205755,0.00852505,3242.3,3242.2,0.4535]
[1762524206350,0.00852505,3242.3,3242.2,8.4535]
[1762524206551,9.422,3243.0,3242.2,8.4535]
[1762524206758,9.422,3243.0,3242.9,0.4535]
[1762524207154,3.2078,3243.3,3242.9,0.4535]
[1762524207347,3.2078,3243.7,3243.0,0.2924]
[1762524207559,3.21076371,3243.7,3243.6,0.7459]
[1762524207755,3.21381977,3243.7,3243.6,0.7459]
[1762524208257,0.00601977,3243.7,3243.6,0.7459]
[1762524209062,1.977e-05,3243.7,3243.6,0.7459]
[1762524209952,0.00232467,3243.7,3243.0,3.50482784]
[1762524210153,0.49985,3243.2,3243.0,3.50482784]
[1762524210353,0.49985,3243.2,3243.0,0.00462784]
[1762524210561,0.50001,3242.3,3242.2,3.2078]
[1762524210750,3.2078,3242.6,3241.6,0.0032109]
[1762524210946,5.107,3242.7,3241.6,0.0032109]
[1762524210947,0.5001,3241.8,3241.6,0.0032109]
[1762524211654,0.45,3241.7,3241.6,0.0032109]
[1762524211864,3.6578,3241.7,3241.6,0.0032109]
[1762524212153,0.00462784,3242.0,3241.6,0.0032109]
[1762524212348,3.6578,3241.7,3241.6,0.0032109]
[1762524212958,11.6578,3241.7,3241.6,0.0032109]
[1762524215360,0.45,3241.5,3241.4,7.84e-06]
[1762524215562,0.50031,3240.5,3240.0,0.2796]
[1762524215767,3.2078,3240.7,3240.0,0.2796]
[1762524216061,0.50032,3240.4,3240.0,0.2796]
[1762524216465,0.00352543,3240.4,3240.0,0.283534]
[1762524216758,0.00352543,3240.4,3240.3,0.4611]
[1762524219161,3.2078,3241.1,3241.0,0.4611]
[1762524219364,3.2078,3241.5,3241.0,0.4611]
[1762524219864,0.50011,3241.8,3241.0,0.96133]
[1762524220061,0.50343812,3241.8,3241.0,0.96133]
[1762524220266,0.50014,3241.6,3241.0,4.16913]
[1762524220466,0.00332812,3241.8,3241.2,0.2603]
[1762524221058,0.00332812,3241.8,3241.3,0.50018]
[1762524221260,0.50342812,3241.8,3241.7,0.4553]
[1762524221460,0.22062812,3241.8,3240.6,3.4874]
[1762524221667,3.2078,3241.4,3240.6,3.4874]
[1762524221962,0.50027,3240.7,3240.2,3.2078]
[1762524222160,0.50029,3240.6,3240.2,3.2078]
[1762524222361,0.50034,3240.3,3240.2,3.2078]
[1762524223466,3.2078,3240.9,3240.2,3.2078]
[1762524223862,0.50029,3240.6,3240.2,3.2078]
[1762524224068,0.50034,3240.3,3240.2,3.2078]
[1762524224269,0.50031,3240.5,3240.2,3.2078]
[1762524224570,3.2078,3240.9,3240.2,3.2078]
[1762524224769,0.50037,3240.1,3240.0,0.003934]
[1762524225670,0.50035,3240.2,3240.0,0.003934]
[1762524225972,0.50037,3240.1,3240.0,0.003934]
[1762524226169,0.00462784,3240.4,3240.0,0.003934]
[1762524226864,0.50037,3240.1,3240.0,0.003934]
[1762524227264,0.93817,3240.1,3240.0,0.003934]
[1762524227474,0.4378,3240.1,3240.0,0.003934]
[1762524227767,0.93817,3240.1,3240.0,0.003934]
[1762524228671,3.21242784,3240.4,3240.0,0.264234]
[1762524229468,0.50037,3240.1,3240.0,0.003934]
[1762524229972,0.93817,3240.1,3240.0,0.003934]
[1762524230771,8.93817,3240.1,3240.0,0.003934]
[1762524232364,1.19178,3240.0,3239.9,0.00462784]
[1762524232572,0.50054,3239.0,3238.5,3.2078]
[1762524232772,0.50054,3239.0,3238.5,3.70841]
[1762524233381,3.2078,3239.7,3239.4,0.2603]
[1762524233677,0.50042,3239.8,3239.7,0.4553]
[1762524233878,0.50043,3239.7,3239.4,0.2603]
[1762524234174,0.00368008,3239.8,3239.7,0.95573]
[1762524234374,0.50494784,3240.4,3240.3,0.4553]
[1762524234681,0.00462784,3240.4,3240.3,0.4553]
[1762524235178,0.50037,3240.1,3239.4,0.2603]
[1762524235376,3.21167664,3240.1,3239.2,3.21242784]
[1762524235577,3.21167664,3240.1,3239.4,0.2603]
[1762524235984,0.50046,3239.5,3239.4,0.2603]
[1762524236183,3.21167664,3240.1,3239.2,0.00462784]
[1762524236184,3.2078,3239.7,3239.2,0.00462784]
[1762524236384,0.50049,3239.3,3239.2,0.00462784]
[1762524236572,4.14609,3239.3,3239.2,0.00462784]
[1762524239975,3.70829,3239.3,3239.2,0.00462784]
[1762524240579,0.50047,3239.5,3239.2,0.00462784]
[1762524240881,0.50044,3239.6,3239.2,0.00462784]
[1762524241081,3.2078,3239.7,3239.2,0.00462784]
[1762524241277,0.50049,3239.3,3239.2,0.00462784]
[1762524241692,3.2078,3239.7,3239.2,0.00462784]
[1762524241986,0.50045,3239.6,3239.2,0.50512784]
[1762524242177,3.2078,3239.7,3239.4,0.6493]
[1762524242686,0.50046,3239.6,3239.4,0.2428]
[1762524242987,0.50047,3239.5,3239.2,0.82903536]
[1762524243183,3.70824,3239.7,3239.3,0.82440752]
[1762524243483,0.50045,3239.6,3239.3,0.82440752]
[1762524243689,0.50047,3239.4,3239.3,0.82440752]
[1762524244086,3.70823,3239.7,3239.3,0.82440752]
[1762524244285,0.50046,3239.5,3239.3,0.82440752]
[1762524244488,3.2078,3239.7,3239.3,0.82440752]
[1762524244687,3.2078,3239.7,3239.6,0.4065]
[1762524245084,0.50042,3239.8,3239.6,0.4065]
[1762524245287,3.21167664,3240.1,3239.7,0.50041]
[1762524245490,3.21167664,3240.1,3239.7,1.32482752]
[1762524245788,3.21167664,3240.1,3239.8,0.82440752]
[1762524245990,3.21167664,3240.1,3239.8,1.32480752]
[1762524246185,3.21167664,3240.1,3240.0,1.97408752]
[1762524246594,0.00387664,3240.1,3240.0,9.97408752]
[1762524246790,0.00387664,3240.1,3239.1,2.20127619]
[1762524246791,8.0,3240.0,3239.1,2.20127619]
[1762524247088,8.0,3240.0,3238.8,0.2428]
[1762524247089,0.50055,3238.9,3238.8,0.2428]
[1762524247285,3.70835,3238.9,3238.8,0.2428]
[1762524247589,3.2078,3238.9,3238.8,0.2428]
[1762524247989,3.70835,3238.9,3238.8,0.2428]
[1762524248697,3.2078,3239.3,3238.8,0.2428]
[1762524248886,3.2078,3239.3,3238.8,0.74337]
[1762524249087,3.70829,3239.3,3238.8,0.2428]
[1762524249687,3.2078,3239.3,3238.8,0.74336]
[1762524249886,3.70829,3239.3,3238.8,0.2428]
[1762524250193,3.2078,3239.3,3238.9,0.50055]
[1762524250387,3.2078,3239.3,3239.2,0.4065]
[1762524250583,3.2078,3239.3,3239.2,0.90701]
[1762524250786,3.2078,3239.3,3239.2,0.4065]
[1762524250993,3.2078,3239.3,3239.2,0.90701]
[1762524251785,3.2078,3239.3,3239.2,8.90701]
[1762524251992,3.70823,3239.7,3239.6,0.4065]
[1762524252589,3.2078,3239.7,3239.6,0.4065]
[1762524252992,3.70823,3239.7,3239.6,0.4065]
[1762524254189,0.50041,3239.8,3239.6,0.4065]
[1762524254390,0.50041,3239.9,3239.6,0.4065]
[1762524254696,3.21167664,3240.1,3239.6,0.4065]
[1762524254896,0.5004,3239.9,3239.6,0.4065]
[1762524255794,0.5004,3239.9,3239.6,0.90694]
[1762524255990,3.21167664,3240.1,3240.0,0.6493]
[1762524256298,3.71204664,3240.1,3240.0,0.6493]
[1762524257488,3.21167664,3240.1,3240.0,0.6493]
[1762524257796,0.00387664,3240.1,3240.0,0.6493]
[1762524257995,0.00387664,3240.1,3240.0,9.14968]
[1762524258199,3.2078,3241.0,3240.7,0.50026]
[1762524258499,0.50028,3240.7,3240.6,0.6493]
[1762524258992,3.2078,3241.0,3240.6,1.14958]
[1762524259195,3.71137401,3241.0,3240.7,0.50027]
[1762524259695,3.21113401,3241.0,3240.9,0.90674]
[1762524259890,0.00333401,3241.0,3240.9,0.91057708]
[1762524261389,0.00333401,3241.0,3240.9,0.41033708]
[1762524261597,0.50356401,3241.0,3240.9,0.41033708]
[1762524261802,3.71136401,3241.0,3240.9,0.00383708]
[1762524262195,4.11166401,3241.0,3240.9,0.00383708]
[1762524265698,0.89679,3240.6,3240.5,0.00462784]
[1762524266098,3.21113401,3241.0,3240.5,0.00462784]
[1762524266397,3.21113401,3241.0,3240.7,0.50027]
[1762524266595,3.21113401,3241.0,3240.9,0.90674]
[1762524266796,0.00333401,3241.0,3240.9,4.11696901]
[1762524267410,0.00333401,3241.0,3240.9,0.00242901]
[1762524267411,4.10786401,3241.0,3240.9,0.00242901]
[1762524267895,12.10786401,3241.0,3240.9,0.00242901]
[1762524269501,4.10786401,3241.0,3240.9,0.00242901]
[1762524270895,4.10786401,3241.0,3240.9,2.901e-05]
[1762524274001,12.10786401,3241.0,3240.9,2.901e-05]
[1762524274591,3.21113401,3241.0,3239.4,0.2428]
[1762524274796,0.5004,3239.9,3239.5,0.50045]
[1762524275298,0.5004,3239.9,3239.5,0.50046]
[1762524275490,3.2078,3240.5,3240.0,0.3052]
[1762524275696,0.50036,3240.2,3240.0,0.30794702]
[1762524275902,0.50037,3240.1,3240.0,0.30794702]
[1762524276093,0.50037,3240.1,3240.0,0.00274702]
[1762524276801,3.2078,3240.5,3240.0,0.80494702]
[1762524277305,0.50033,3240.4,3240.0,1.30532702]
[1762524277494,3.2078,3240.5,3240.2,0.497]
[1762524277699,0.50034,3240.3,3240.2,0.497]
[1762524278003,0.50037,3240.1,3240.0,0.30794702]
[1762524278207,3.70817,3240.1,3240.0,0.30794702]
[1762524278501,3.2078,3240.1,3240.0,0.30794702]
[1762524278709,3.2078,3240.5,3240.0,0.30794702]
[1762524279107,0.50035,3240.2,3240.1,0.497]
[1762524280008,3.2078,3240.5,3240.4,0.497]
[1762524280409,3.70811,3240.5,3240.4,0.497]
[1762524281808,0.50034,3240.3,3240.2,1.10042372]
[1762524282313,0.50034,3240.3,3240.2,1.60832372]
[1762524282520,1.00534,3240.3,3240.2,1.10042372]
[1762524282704,1.00537,3240.1,3240.0,0.00274702]
[1762524284013,0.50036,3240.2,3240.0,0.30574702]
[1762524284312,3.2078,3240.5,3240.0,0.30574702]
[1762524284313,0.50037,3240.1,3240.0,0.30574702]
[1762524284510,3.2078,3240.5,3240.4,0.5079]
[1762524284916,0.50034,3240.3,3240.2,1.10042372]
[1762524285216,0.50035,3240.2,3240.1,1.10042372]
[1762524286114,0.50035,3240.2,3240.0,2.45335333]
[1762524286416,0.50035,3240.2,3240.1,0.5079]
[1762524286616,0.50037,3240.1,3240.0,1.95297333]
[1762524287220,0.50037,3240.1,3240.0,1.40955603]
[1762524287515,0.50037,3240.1,3240.0,1.91745603]
[1762524287717,0.50036,3240.2,3240.1,1.00827]
[1762524287917,0.50036,3240.2,3240.1,1.61161954]
[1762524288619,0.50034,3240.3,3240.2,0.5079]